[Event "Early-Titled-Tuesday-Blitz-May-07-2024"]
[Site "Chess.com"]
[Date "2024.05.07"]
[Round "5"]
[White "sterpfi"]
[Black "Artemiki"]
[Result "0-1"]
[WhiteElo "2324"]
[BlackElo "2503"]
[TimeControl "180+1"]
[EndTime "8:59:44 PDT"]
[Termination "Artemiki won by checkmate"]

1. e4 {[%clk 0:03:00.9]} 1... c5 {[%clk 0:02:58.1]} 2. Nc3 {[%clk 0:02:59.9]}
2... Nc6 {[%clk 0:02:56.2]} 3. Bb5 {[%clk 0:03:00.4]} 3... Nd4 {[%clk
0:02:51.7]} 4. Nf3 {[%clk 0:03:00.6]} 4... e6 {[%clk 0:02:51.6]} 5. O-O {[%clk
0:02:56.1]} 5... a6 {[%clk 0:02:47.2]} 6. Bd3 {[%clk 0:02:55.6]} 6... Nc6 {[%clk
0:02:44.9]} 7. Nd5 {[%clk 0:02:52.3]} 7... g5 {[%clk 0:02:38.9]} 8. Ne3 {[%clk
0:02:40.9]} 8... h5 {[%clk 0:02:36]} 9. h4 {[%clk 0:02:34.3]} 9... g4 {[%clk
0:02:31.9]} 10. Ng5 {[%clk 0:02:34.6]} 10... f6 {[%clk 0:02:29.1]} 11. e5 {[%clk
0:02:21.7]} 11... Nxe5 {[%clk 0:02:25.5]} 12. Ne4 {[%clk 0:02:08.6]} 12... d5
{[%clk 0:02:02.9]} 13. Ng3 {[%clk 0:02:07.2]} 13... d4 {[%clk 0:01:52.8]} 14.
Nc4 {[%clk 0:02:04.8]} 14... Nxd3 {[%clk 0:01:24.9]} 15. cxd3 {[%clk 0:02:05.7]}
15... b5 {[%clk 0:01:19.1]} 16. Na3 {[%clk 0:02:03]} 16... f5 {[%clk 0:00:57.3]}
17. Re1 {[%clk 0:01:57.9]} 17... Qd5 {[%clk 0:00:50.6]} 18. Qb3 {[%clk
0:01:49.2]} 18... Ne7 {[%clk 0:00:43.8]} 19. Qxd5 {[%clk 0:01:46.9]} 19... Nxd5
{[%clk 0:00:40.5]} 20. Nxf5 {[%clk 0:01:43.8]} 20... Kd7 {[%clk 0:00:33.8]} 21.
Ng3 {[%clk 0:01:41.2]} 21... Nb4 {[%clk 0:00:31.4]} 22. b3 {[%clk 0:01:29.6]}
22... Nxd3 {[%clk 0:00:29.4]} 23. Re2 {[%clk 0:01:21.1]} 23... Bb7 {[%clk
0:00:23.8]} 24. Nc2 {[%clk 0:01:13.9]} 24... Nf4 {[%clk 0:00:21.9]} 25. Re4
{[%clk 0:01:04.2]} 25... Bxe4 {[%clk 0:00:19.4]} 26. Nxe4 {[%clk 0:01:05.1]}
26... Be7 {[%clk 0:00:19.9]} 27. b4 {[%clk 0:01:03.9]} 27... d3 {[%clk
0:00:13.8]} 28. Ne3 {[%clk 0:01:02.6]} 28... c4 {[%clk 0:00:14.2]} 29. Bb2
{[%clk 0:01:01.4]} 29... Ne2+ {[%clk 0:00:14]} 30. Kf1 {[%clk 0:00:55.8]} 30...
Rhf8 {[%clk 0:00:14.3]} 31. a4 {[%clk 0:00:45.8]} 31... Bxh4 {[%clk 0:00:12.2]}
32. g3 {[%clk 0:00:42.9]} 32... Nxg3+ {[%clk 0:00:10.7]} 33. Nxg3 {[%clk
0:00:40.5]} 33... Bxg3 {[%clk 0:00:11.6]} 34. Kg2 {[%clk 0:00:37.7]} 34... Bxf2
{[%clk 0:00:08.9]} 35. axb5 {[%clk 0:00:38.3]} 35... Bxe3 {[%clk 0:00:08]} 36.
dxe3 {[%clk 0:00:33]} 36... axb5 {[%clk 0:00:07]} 37. Rh1 {[%clk 0:00:33.2]}
37... Ra2 {[%clk 0:00:06.3]} 38. Rxh5 {[%clk 0:00:32.6]} 38... Rxb2+ {[%clk
0:00:06.5]} 39. Kg3 {[%clk 0:00:33.5]} 39... Rf3+ {[%clk 0:00:05.3]} 40. Kxg4
{[%clk 0:00:33.5]} 40... Rxe3 {[%clk 0:00:05.6]} 41. Kf4 {[%clk 0:00:32.7]}
41... Re1 {[%clk 0:00:06.1]} 42. Rh7+ {[%clk 0:00:32.4]} 42... Kd6 {[%clk
0:00:06.1]} 43. Rh8 {[%clk 0:00:32.6]} 43... Rf2+ {[%clk 0:00:06.4]} 44. Kg3
{[%clk 0:00:32.3]} 44... Rf5 {[%clk 0:00:07.3]} 45. Rd8+ {[%clk 0:00:31.6]}
45... Ke5 {[%clk 0:00:07.3]} 46. Kh2 {[%clk 0:00:29.7]} 46... Re4 {[%clk
0:00:06.4]} 47. Kh3 {[%clk 0:00:28.9]} 47... Re3+ {[%clk 0:00:06.3]} 48. Kh2
{[%clk 0:00:29.2]} 48... Rf2+ {[%clk 0:00:06.4]} 49. Kg1 {[%clk 0:00:29.3]}
49... Ra2 {[%clk 0:00:07]} 50. Rf8 {[%clk 0:00:26.3]} 50... Re1+ {[%clk
0:00:06.7]} 51. Rf1 {[%clk 0:00:27.2]} 51... d2 {[%clk 0:00:06]} 52. Rxe1+
{[%clk 0:00:24.1]} 52... dxe1=R# {[%clk 0:00:05.3]} 0-1

[Event "Early-Titled-Tuesday-Blitz-May-07-2024"]
[Site "Chess.com"]
[Date "2024.05.07"]
[Round "5"]
[White "ATM622"]
[Black "sonicdravise"]
[Result "1-0"]
[WhiteElo "2510"]
[BlackElo "2624"]
[TimeControl "180+1"]
[EndTime "8:59:44 PDT"]
[Termination "ATM622 won on time"]

1. d4 {[%clk 0:03:00.9]} 1... Nf6 {[%clk 0:02:59.1]} 2. c4 {[%clk 0:03:00.4]}
2... c5 {[%clk 0:02:58.6]} 3. d5 {[%clk 0:03:00.5]} 3... e6 {[%clk 0:02:59.1]}
4. Nc3 {[%clk 0:02:58.5]} 4... exd5 {[%clk 0:02:59.1]} 5. cxd5 {[%clk
0:02:59.4]} 5... d6 {[%clk 0:02:59.9]} 6. g3 {[%clk 0:02:59.3]} 6... g6 {[%clk
0:03:00.3]} 7. Bg2 {[%clk 0:02:56.7]} 7... Bg7 {[%clk 0:03:00.7]} 8. Nf3 {[%clk
0:02:55.7]} 8... O-O {[%clk 0:03:01.3]} 9. O-O {[%clk 0:02:55.9]} 9... Re8
{[%clk 0:03:01]} 10. Nd2 {[%clk 0:02:46.3]} 10... a6 {[%clk 0:02:59.9]} 11. a4
{[%clk 0:02:45.6]} 11... Nbd7 {[%clk 0:02:56.9]} 12. Nc4 {[%clk 0:02:40.3]}
12... Ne5 {[%clk 0:02:56]} 13. Nxe5 {[%clk 0:02:38.3]} 13... Rxe5 {[%clk
0:02:55.7]} 14. e4 {[%clk 0:02:38.7]} 14... Re8 {[%clk 0:02:49.2]} 15. Re1
{[%clk 0:02:31.3]} 15... Nd7 {[%clk 0:02:39.9]} 16. Bf4 {[%clk 0:02:24.6]} 16...
Ne5 {[%clk 0:02:37.9]} 17. Qc2 {[%clk 0:02:06.9]} 17... Rb8 {[%clk 0:02:35.6]}
18. a5 {[%clk 0:02:06.5]} 18... Bd7 {[%clk 0:02:23.8]} 19. Qe2 {[%clk
0:01:52.9]} 19... Qc8 {[%clk 0:01:45.9]} 20. Na4 {[%clk 0:01:41.2]} 20... Bxa4
{[%clk 0:01:39.3]} 21. Rxa4 {[%clk 0:01:40.1]} 21... b5 {[%clk 0:01:34.2]} 22.
axb6 {[%clk 0:01:39.6]} 22... Rxb6 {[%clk 0:01:34.9]} 23. Rea1 {[%clk
0:01:30.1]} 23... Rxb2 {[%clk 0:01:25.4]} 24. Qxa6 {[%clk 0:01:25.7]} 24... Qg4
{[%clk 0:01:20.9]} 25. R4a3 {[%clk 0:01:19.4]} 25... c4 {[%clk 0:01:01.6]} 26.
Bxe5 {[%clk 0:01:04.5]} 26... Qe2 {[%clk 0:00:58.9]} 27. Bxb2 {[%clk 0:00:55.3]}
27... Bxb2 {[%clk 0:00:52.4]} 28. R3a2 {[%clk 0:00:55.2]} 28... Rb8 {[%clk
0:00:41.9]} 29. Rb1 {[%clk 0:00:46.7]} 29... Qc2 {[%clk 0:00:35.9]} 30. Rf1
{[%clk 0:00:35.2]} 30... c3 {[%clk 0:00:32.3]} 31. e5 {[%clk 0:00:28.5]} 31...
dxe5 {[%clk 0:00:29.6]} 32. d6 {[%clk 0:00:27.6]} 32... Qb3 {[%clk 0:00:29.1]}
33. d7 {[%clk 0:00:25.1]} 33... Kg7 {[%clk 0:00:25.9]} 34. Be4 {[%clk
0:00:13.1]} 34... Rd8 {[%clk 0:00:21.1]} 35. Qa4 {[%clk 0:00:06.8]} 35... Qb6
{[%clk 0:00:13]} 36. h4 {[%clk 0:00:04.4]} 36... f5 {[%clk 0:00:11.9]} 37. Bd5
{[%clk 0:00:04.3]} 37... Qd4 {[%clk 0:00:08.3]} 38. Bb3 {[%clk 0:00:04.4]} 38...
Rxd7 {[%clk 0:00:04.8]} 39. Qxd4 {[%clk 0:00:04.3]} 39... exd4 {[%clk
0:00:04.9]} 40. Rd1 {[%clk 0:00:04.1]} 40... d3 {[%clk 0:00:04.2]} 41. Ra4
{[%clk 0:00:02.5]} 41... Kf6 {[%clk 0:00:02.6]} 42. Rc4 {[%clk 0:00:01.7]} 42...
Re7 {[%clk 0:00:00.1]} 43. Rxd3 {[%clk 0:00:01.6]} 1-0

[Event "Early-Titled-Tuesday-Blitz-May-07-2024"]
[Site "Chess.com"]
[Date "2024.05.07"]
[Round "5"]
[White "JiiHart"]
[Black "JJDAREK"]
[Result "0-1"]
[WhiteElo "2159"]
[BlackElo "2370"]
[TimeControl "180+1"]
[EndTime "8:59:44 PDT"]
[Termination "JJDAREK won by checkmate"]

1. e4 {[%clk 0:03:00.9]} 1... d6 {[%clk 0:02:59.1]} 2. d4 {[%clk 0:03:00.3]}
2... Nf6 {[%clk 0:02:58.4]} 3. Nc3 {[%clk 0:03:00.2]} 3... g6 {[%clk 0:02:58.8]}
4. Be2 {[%clk 0:02:59.8]} 4... Bg7 {[%clk 0:02:53.5]} 5. g4 {[%clk 0:02:58.9]}
5... h5 {[%clk 0:02:40.9]} 6. g5 {[%clk 0:02:51.6]} 6... Nfd7 {[%clk 0:02:40.8]}
7. Be3 {[%clk 0:02:43.8]} 7... O-O {[%clk 0:02:39.5]} 8. Qd2 {[%clk 0:02:42.1]}
8... c5 {[%clk 0:02:39.7]} 9. Nf3 {[%clk 0:02:39.4]} 9... Qa5 {[%clk 0:02:21.5]}
10. O-O {[%clk 0:02:15.1]} 10... cxd4 {[%clk 0:02:19.8]} 11. Nd5 {[%clk
0:02:02.9]} 11... Qd8 {[%clk 0:02:11.8]} 12. Nxd4 {[%clk 0:01:56.8]} 12... e6
{[%clk 0:02:06]} 13. Nc3 {[%clk 0:01:44.7]} 13... Ne5 {[%clk 0:01:20.7]} 14. f4
{[%clk 0:01:37]} 14... Nec6 {[%clk 0:01:16.4]} 15. Ndb5 {[%clk 0:01:29.9]} 15...
d5 {[%clk 0:01:10.4]} 16. exd5 {[%clk 0:01:29.6]} 16... exd5 {[%clk 0:01:11.3]}
17. Qxd5 {[%clk 0:01:21.6]} 17... Na6 {[%clk 0:00:59.9]} 18. Rae1 {[%clk
0:01:04.7]} 18... Bh3 {[%clk 0:00:55.4]} 19. Rf2 {[%clk 0:00:52.4]} 19... Qxd5
{[%clk 0:00:52.3]} 20. Nxd5 {[%clk 0:00:51.4]} 20... Bxb2 {[%clk 0:00:47.2]} 21.
c3 {[%clk 0:00:35.9]} 21... Be6 {[%clk 0:00:23.1]} 22. Bf3 {[%clk 0:00:29.1]}
22... Bxd5 {[%clk 0:00:14.6]} 23. Bxd5 {[%clk 0:00:29.2]} 23... Rfd8 {[%clk
0:00:14.7]} 24. c4 {[%clk 0:00:20.4]} 24... Bg7 {[%clk 0:00:09.8]} 25. Bxc6
{[%clk 0:00:20.5]} 25... bxc6 {[%clk 0:00:09.7]} 26. Nxa7 {[%clk 0:00:20.9]}
26... Nb4 {[%clk 0:00:07.9]} 27. a3 {[%clk 0:00:18.9]} 27... Nd3 {[%clk
0:00:07.3]} 28. Nxc6 {[%clk 0:00:13.4]} 28... Re8 {[%clk 0:00:04.6]} 29. Rfe2
{[%clk 0:00:12.1]} 29... Nxe1 {[%clk 0:00:04.8]} 30. Rxe1 {[%clk 0:00:12.8]}
30... Rxa3 {[%clk 0:00:04.9]} 31. Bf2 {[%clk 0:00:12.4]} 31... Rxe1+ {[%clk
0:00:03.7]} 32. Bxe1 {[%clk 0:00:13.3]} 32... Ra2 {[%clk 0:00:03.7]} 33. Ne5
{[%clk 0:00:13.1]} 33... Bxe5 {[%clk 0:00:03.8]} 34. fxe5 {[%clk 0:00:13.6]}
34... Rc2 {[%clk 0:00:04.2]} 35. c5 {[%clk 0:00:13.8]} 35... Rxc5 {[%clk
0:00:04.2]} 36. Kg2 {[%clk 0:00:14.4]} 36... Rxe5 {[%clk 0:00:04.5]} 37. Bg3
{[%clk 0:00:14.8]} 37... Rxg5 {[%clk 0:00:04.7]} 38. Kf3 {[%clk 0:00:15.7]}
38... Rxg3+ {[%clk 0:00:05.1]} 39. hxg3 {[%clk 0:00:15.4]} 39... Kg7 {[%clk
0:00:05.7]} 40. Kf4 {[%clk 0:00:16.3]} 40... f6 {[%clk 0:00:05.3]} 41. Ke4
{[%clk 0:00:16.3]} 41... Kf7 {[%clk 0:00:05.8]} 42. Kf4 {[%clk 0:00:16.8]} 42...
Ke6 {[%clk 0:00:06.1]} 43. Ke4 {[%clk 0:00:17.7]} 43... g5 {[%clk 0:00:06.5]}
44. Kf3 {[%clk 0:00:17.6]} 44... Ke5 {[%clk 0:00:06.9]} 45. Ke3 {[%clk
0:00:18.4]} 45... f5 {[%clk 0:00:07.5]} 46. Kf3 {[%clk 0:00:18.8]} 46... h4
{[%clk 0:00:07.9]} 47. gxh4 {[%clk 0:00:19.1]} 47... gxh4 {[%clk 0:00:08.8]} 48.
Ke2 {[%clk 0:00:18.3]} 48... Ke4 {[%clk 0:00:08.9]} 49. Kf2 {[%clk 0:00:19.2]}
49... f4 {[%clk 0:00:09.3]} 50. Kg2 {[%clk 0:00:19.8]} 50... f3+ {[%clk
0:00:09.8]} 51. Kf2 {[%clk 0:00:20.2]} 51... Kf4 {[%clk 0:00:10.4]} 52. Kg1
{[%clk 0:00:19.8]} 52... Ke3 {[%clk 0:00:10.8]} 53. Kh2 {[%clk 0:00:20]} 53...
f2 {[%clk 0:00:10.8]} 54. Kh3 {[%clk 0:00:20.4]} 54... f1=Q+ {[%clk 0:00:10.5]}
55. Kxh4 {[%clk 0:00:21.3]} 55... Qg2 {[%clk 0:00:10.8]} 56. Kh5 {[%clk
0:00:21.7]} 56... Kf4 {[%clk 0:00:11.1]} 57. Kh6 {[%clk 0:00:22.3]} 57... Qg8
{[%clk 0:00:10.8]} 58. Kh5 {[%clk 0:00:22.2]} 58... Qh7# {[%clk 0:00:11.2]} 0-1

[Event "Early-Titled-Tuesday-Blitz-May-07-2024"]
[Site "Chess.com"]
[Date "2024.05.07"]
[Round "5"]
[White "CSB7"]
[Black "Nadtkins"]
[Result "1-0"]
[WhiteElo "2770"]
[BlackElo "2533"]
[TimeControl "180+1"]
[EndTime "8:59:46 PDT"]
[Termination "CSB7 won on time"]

1. d4 {[%clk 0:03:00.9]} 1... Nf6 {[%clk 0:02:59.5]} 2. Nf3 {[%clk 0:02:56.7]}
2... d6 {[%clk 0:02:59.9]} 3. c4 {[%clk 0:02:52]} 3... g6 {[%clk 0:02:58.1]} 4.
Nc3 {[%clk 0:02:52.2]} 4... Bf5 {[%clk 0:02:58.7]} 5. Ng5 {[%clk 0:02:45.5]}
5... h6 {[%clk 0:02:49.9]} 6. e4 {[%clk 0:02:45.7]} 6... Bg4 {[%clk 0:02:49.8]}
7. Nf3 {[%clk 0:02:44.9]} 7... Bg7 {[%clk 0:02:43.9]} 8. Be2 {[%clk 0:02:43.1]}
8... Nfd7 {[%clk 0:02:42.6]} 9. Be3 {[%clk 0:02:27.9]} 9... c5 {[%clk 0:02:34]}
10. d5 {[%clk 0:02:16.1]} 10... Na6 {[%clk 0:02:14.2]} 11. Qd2 {[%clk
0:02:07.2]} 11... Nc7 {[%clk 0:02:09.4]} 12. O-O {[%clk 0:02:05]} 12... Rb8
{[%clk 0:02:05.9]} 13. Rab1 {[%clk 0:01:56.3]} 13... Bxf3 {[%clk 0:01:18.8]} 14.
Bxf3 {[%clk 0:01:57.2]} 14... b5 {[%clk 0:01:19.2]} 15. cxb5 {[%clk 0:01:51]}
15... Nxb5 {[%clk 0:01:16.6]} 16. Nxb5 {[%clk 0:01:50.7]} 16... Rxb5 {[%clk
0:01:17.5]} 17. Be2 {[%clk 0:01:45.4]} 17... Rb4 {[%clk 0:01:14.5]} 18. f3
{[%clk 0:01:41.4]} 18... Bd4 {[%clk 0:01:05.3]} 19. Kh1 {[%clk 0:01:34.7]} 19...
Bxe3 {[%clk 0:01:01.4]} 20. Qxe3 {[%clk 0:01:35.6]} 20... h5 {[%clk 0:00:59.7]}
21. f4 {[%clk 0:01:34.2]} 21... Nf6 {[%clk 0:00:56.1]} 22. Bf3 {[%clk
0:01:25.3]} 22... Rd4 {[%clk 0:00:29.5]} 23. b4 {[%clk 0:00:58.9]} 23... O-O
{[%clk 0:00:20.9]} 24. bxc5 {[%clk 0:00:49.7]} 24... dxc5 {[%clk 0:00:21.8]} 25.
Rbc1 {[%clk 0:00:40]} 25... Qa5 {[%clk 0:00:17.9]} 26. f5 {[%clk 0:00:38.3]}
26... Kg7 {[%clk 0:00:17.2]} 27. Qg5 {[%clk 0:00:25.5]} 27... Qc7 {[%clk
0:00:08.1]} 28. h3 {[%clk 0:00:24.8]} 28... Qd6 {[%clk 0:00:07.1]} 29. Qe3
{[%clk 0:00:23.6]} 29... Qe5 {[%clk 0:00:05.3]} 30. Rfe1 {[%clk 0:00:17.5]}
30... Rc8 {[%clk 0:00:04.8]} 31. Rc3 {[%clk 0:00:15]} 31... h4 {[%clk 0:00:05]}
32. Rec1 {[%clk 0:00:14.4]} 32... Qg3 {[%clk 0:00:05]} 33. Qe1 {[%clk
0:00:09.8]} 33... Nh5 {[%clk 0:00:04.7]} 34. Bxh5 {[%clk 0:00:09.2]} 34... Qxe1+
{[%clk 0:00:04.1]} 35. Rxe1 {[%clk 0:00:10.1]} 35... gxh5 {[%clk 0:00:03.6]} 36.
Kg1 {[%clk 0:00:08.3]} 36... Kf6 {[%clk 0:00:04]} 37. e5+ {[%clk 0:00:08.5]}
37... Kxf5 {[%clk 0:00:03.9]} 38. Rf3+ {[%clk 0:00:08.5]} 38... Kg6 {[%clk
0:00:04.1]} 39. d6 {[%clk 0:00:08.2]} 39... exd6 {[%clk 0:00:03.5]} 40. e6
{[%clk 0:00:08.9]} 40... f5 {[%clk 0:00:01.4]} 41. e7 {[%clk 0:00:08.3]} 41...
Re8 {[%clk 0:00:01.7]} 42. Re6+ {[%clk 0:00:05.4]} 42... Kf7 {[%clk 0:00:02.1]}
43. Rh6 {[%clk 0:00:06]} 43... Rxe7 {[%clk 0:00:01.9]} 44. Rxf5+ {[%clk
0:00:06.6]} 44... Ke8 {[%clk 0:00:02.2]} 45. Rfxh5 {[%clk 0:00:06.8]} 45... Re1+
{[%clk 0:00:01.1]} 46. Kf2 {[%clk 0:00:06.3]} 46... Rdd1 {[%clk 0:00:01.1]} 47.
Rh7 {[%clk 0:00:04.2]} 1-0

[Event "Early-Titled-Tuesday-Blitz-May-07-2024"]
[Site "Chess.com"]
[Date "2024.05.07"]
[Round "5"]
[White "IriBu"]
[Black "FuenfgegenWilly"]
[Result "1-0"]
[WhiteElo "2592"]
[BlackElo "2452"]
[TimeControl "180+1"]
[EndTime "8:59:46 PDT"]
[Termination "IriBu won by resignation"]

1. e4 {[%clk 0:03:00.9]} 1... c5 {[%clk 0:02:55.3]} 2. c3 {[%clk 0:02:58.9]}
2... a6 {[%clk 0:02:54.2]} 3. d4 {[%clk 0:02:58.3]} 3... e6 {[%clk 0:02:53.2]}
4. Nf3 {[%clk 0:02:58.2]} 4... d5 {[%clk 0:02:53]} 5. e5 {[%clk 0:02:57.5]} 5...
Bd7 {[%clk 0:02:53.1]} 6. Be2 {[%clk 0:02:56.6]} 6... cxd4 {[%clk 0:02:51.1]} 7.
cxd4 {[%clk 0:02:56.1]} 7... Bb5 {[%clk 0:02:52]} 8. Nc3 {[%clk 0:02:55.8]} 8...
Bb4 {[%clk 0:02:29.3]} 9. Bxb5+ {[%clk 0:02:53.2]} 9... axb5 {[%clk 0:02:29.4]}
10. Bd2 {[%clk 0:02:53]} 10... Qb6 {[%clk 0:02:24.8]} 11. O-O {[%clk 0:02:50.9]}
11... Nc6 {[%clk 0:02:24.6]} 12. Qe2 {[%clk 0:02:47.3]} 12... h5 {[%clk
0:02:19.9]} 13. a3 {[%clk 0:02:43.4]} 13... Be7 {[%clk 0:02:19.5]} 14. Nxb5
{[%clk 0:02:40.8]} 14... Nh6 {[%clk 0:02:14.9]} 15. Bxh6 {[%clk 0:02:33.8]}
15... Rxh6 {[%clk 0:02:13.3]} 16. a4 {[%clk 0:02:31.8]} 16... g5 {[%clk
0:02:08.4]} 17. Rfc1 {[%clk 0:02:29]} 17... g4 {[%clk 0:02:07.6]} 18. Ne1 {[%clk
0:02:26.5]} 18... Kf8 {[%clk 0:01:54.8]} 19. Qd3 {[%clk 0:02:20]} 19... h4
{[%clk 0:01:48.4]} 20. b3 {[%clk 0:02:18]} 20... Rg6 {[%clk 0:01:42.6]} 21. Nc2
{[%clk 0:01:55.2]} 21... g3 {[%clk 0:01:39]} 22. hxg3 {[%clk 0:01:53.3]} 22...
hxg3 {[%clk 0:01:38.9]} 23. fxg3 {[%clk 0:01:50.5]} 23... Nxe5 {[%clk
0:01:38.6]} 24. Qe2 {[%clk 0:01:46.2]} 24... Ng4 {[%clk 0:01:33.2]} 25. Rf1
{[%clk 0:01:39.6]} 25... Kg7 {[%clk 0:01:23.4]} 26. Ne3 {[%clk 0:01:38.6]} 26...
Nxe3 {[%clk 0:01:16.7]} 27. Qxe3 {[%clk 0:01:39.5]} 27... Bf6 {[%clk 0:01:14.9]}
28. Rf2 {[%clk 0:01:34.5]} 28... Rh8 {[%clk 0:01:06.1]} 29. Raf1 {[%clk
0:01:20]} 29... Rh5 {[%clk 0:00:51.7]} 30. Rf4 {[%clk 0:01:15.4]} 30... Qd8
{[%clk 0:00:37.6]} 31. Qf3 {[%clk 0:01:14.4]} 31... Rhg5 {[%clk 0:00:33.5]} 32.
g4 {[%clk 0:01:11.9]} 32... Rh6 {[%clk 0:00:19]} 33. Kf2 {[%clk 0:01:02.1]}
33... Rhg6 {[%clk 0:00:15.8]} 34. Ke2 {[%clk 0:01:01.5]} 34... e5 {[%clk
0:00:15.8]} 35. Rf5 {[%clk 0:00:42.8]} 35... e4 {[%clk 0:00:12.1]} 36. Qh3
{[%clk 0:00:37.5]} 36... Rxg4 {[%clk 0:00:11.1]} 37. Rxf6 {[%clk 0:00:35.1]}
37... Qxf6 {[%clk 0:00:07.9]} 38. Rxf6 {[%clk 0:00:34.4]} 38... Kxf6 {[%clk
0:00:08.8]} 39. Kf2 {[%clk 0:00:32.1]} 39... Kg7 {[%clk 0:00:06.9]} 40. Nc3
{[%clk 0:00:27.7]} 40... Rf4+ {[%clk 0:00:07]} 41. Kg1 {[%clk 0:00:27.4]} 41...
Rg5 {[%clk 0:00:06.3]} 42. Ne2 {[%clk 0:00:26.9]} 42... Rfg4 {[%clk 0:00:06.5]}
43. g3 {[%clk 0:00:25.6]} 43... f5 {[%clk 0:00:06.7]} 44. Kf2 {[%clk 0:00:25.1]}
44... Rg6 {[%clk 0:00:05.8]} 45. Nf4 {[%clk 0:00:25.4]} 45... Rh6 {[%clk
0:00:06.3]} 46. Qg2 {[%clk 0:00:24.4]} 46... Rc6 {[%clk 0:00:06.2]} 47. Ne2
{[%clk 0:00:20.9]} 47... Rc2 {[%clk 0:00:05.5]} 48. Qh3 {[%clk 0:00:20.6]} 48...
Rb2 {[%clk 0:00:04.4]} 49. Qh5 {[%clk 0:00:20.5]} 49... Kf6 {[%clk 0:00:03.4]}
50. Qh6+ {[%clk 0:00:20.4]} 50... Rg6 {[%clk 0:00:03.7]} 51. Qh8+ {[%clk
0:00:20.4]} 51... Rg7 {[%clk 0:00:03.6]} 52. Qf8+ {[%clk 0:00:20.3]} 52... Rf7
{[%clk 0:00:03.9]} 53. Qd6+ {[%clk 0:00:20.1]} 53... Kg5 {[%clk 0:00:04.3]} 54.
Qxd5 {[%clk 0:00:19.8]} 54... Rd2 {[%clk 0:00:03.9]} 55. Qxf7 {[%clk 0:00:19.1]}
55... Rxd4 {[%clk 0:00:03.2]} 56. Nxd4 {[%clk 0:00:18.4]} 1-0

[Event "Early-Titled-Tuesday-Blitz-May-07-2024"]
[Site "Chess.com"]
[Date "2024.05.07"]
[Round "5"]
[White "DrVelja"]
[Black "Firouzja2003"]
[Result "1-0"]
[WhiteElo "2968"]
[BlackElo "3196"]
[TimeControl "180+1"]
[EndTime "8:59:47 PDT"]
[Termination "DrVelja won on time"]

1. e4 {[%clk 0:02:50.1]} 1... c5 {[%clk 0:02:59.1]} 2. Nf3 {[%clk 0:02:50]} 2...
d6 {[%clk 0:02:59.1]} 3. d4 {[%clk 0:02:49.6]} 3... cxd4 {[%clk 0:03:00]} 4.
Nxd4 {[%clk 0:02:49.8]} 4... Nf6 {[%clk 0:02:57.8]} 5. Nc3 {[%clk 0:02:50.5]}
5... a6 {[%clk 0:02:57.8]} 6. Be3 {[%clk 0:02:50.3]} 6... g6 {[%clk 0:02:44.8]}
7. Qd2 {[%clk 0:02:47]} 7... Bg7 {[%clk 0:02:41.9]} 8. f3 {[%clk 0:02:47.3]}
8... h5 {[%clk 0:02:41.7]} 9. Be2 {[%clk 0:02:46.3]} 9... Qc7 {[%clk 0:02:41.3]}
10. a4 {[%clk 0:02:45.7]} 10... Nbd7 {[%clk 0:02:38.5]} 11. a5 {[%clk
0:02:44.9]} 11... O-O {[%clk 0:02:32.4]} 12. O-O {[%clk 0:02:44.7]} 12... Ne5
{[%clk 0:02:31.6]} 13. Na4 {[%clk 0:02:37.1]} 13... Nfd7 {[%clk 0:02:09.9]} 14.
c4 {[%clk 0:02:35.6]} 14... Nc6 {[%clk 0:02:03.1]} 15. b4 {[%clk 0:02:26.5]}
15... Rb8 {[%clk 0:01:51]} 16. Rfc1 {[%clk 0:02:14.1]} 16... Rd8 {[%clk
0:01:37.2]} 17. Rab1 {[%clk 0:02:03.2]} 17... Nxd4 {[%clk 0:01:09.4]} 18. Bxd4
{[%clk 0:02:03.3]} 18... Bxd4+ {[%clk 0:01:10.3]} 19. Qxd4 {[%clk 0:02:04.2]}
19... b6 {[%clk 0:01:10.9]} 20. axb6 {[%clk 0:02:00.1]} 20... Nxb6 {[%clk
0:01:11.1]} 21. Nc3 {[%clk 0:01:53]} 21... e5 {[%clk 0:01:11]} 22. Qf2 {[%clk
0:01:28.2]} 22... Be6 {[%clk 0:01:10.7]} 23. Nd5 {[%clk 0:01:20]} 23... Bxd5
{[%clk 0:01:08.1]} 24. cxd5 {[%clk 0:01:20.3]} 24... Qe7 {[%clk 0:00:34.1]} 25.
Bxa6 {[%clk 0:01:20.9]} 25... h4 {[%clk 0:00:32.4]} 26. Bf1 {[%clk 0:01:09.4]}
26... Nd7 {[%clk 0:00:22.7]} 27. Rc7 {[%clk 0:01:09.2]} 27... Qg5 {[%clk
0:00:22.7]} 28. Rc6 {[%clk 0:00:38.3]} 28... Nf6 {[%clk 0:00:19.9]} 29. b5
{[%clk 0:00:32]} 29... Nh5 {[%clk 0:00:19.4]} 30. b6 {[%clk 0:00:32.6]} 30...
Nf4 {[%clk 0:00:18.9]} 31. Kh1 {[%clk 0:00:32.8]} 31... f5 {[%clk 0:00:18]} 32.
b7 {[%clk 0:00:30.3]} 32... fxe4 {[%clk 0:00:17.4]} 33. fxe4 {[%clk 0:00:31.2]}
33... Rf8 {[%clk 0:00:16.4]} 34. Qc2 {[%clk 0:00:27.5]} 34... Nh5 {[%clk
0:00:05.8]} 35. Qc1 {[%clk 0:00:13.9]} 35... Qf6 {[%clk 0:00:05.6]} 36. Be2
{[%clk 0:00:10]} 36... Nf4 {[%clk 0:00:05.3]} 37. Bf1 {[%clk 0:00:05.7]} 37...
h3 {[%clk 0:00:04.7]} 38. gxh3 {[%clk 0:00:04.6]} 38... Kg7 {[%clk 0:00:01.6]}
39. Rc7+ {[%clk 0:00:05]} 39... Kh6 {[%clk 0:00:02]} 40. Rc8 {[%clk 0:00:05.9]}
40... Qf7 {[%clk 0:00:01.8]} 41. Rxf8 {[%clk 0:00:05.5]} 41... Rxf8 {[%clk
0:00:01.2]} 42. b8=Q {[%clk 0:00:05.3]} 42... Rxb8 {[%clk 0:00:02.1]} 43. Rxb8
{[%clk 0:00:05.7]} 43... g5 {[%clk 0:00:02.6]} 44. Rb1 {[%clk 0:00:05.8]} 44...
Qg6 {[%clk 0:00:02.9]} 45. Qe3 {[%clk 0:00:06.2]} 45... Qh5 {[%clk 0:00:02.7]}
46. Re1 {[%clk 0:00:06]} 46... Ng6 {[%clk 0:00:02.7]} 47. Bg2 {[%clk 0:00:05.8]}
47... Nh4 {[%clk 0:00:02.1]} 48. Rf1 {[%clk 0:00:05.6]} 48... Qg6 {[%clk
0:00:01.1]} 49. Qf2 {[%clk 0:00:05.6]} 1-0